fUSD/lending_fUSD_20240909
["ID","MTS","AMOUNT","RATE_DAILY","PERIOD"]
[337582497,1725856244643,-150.72,0.0001499,2]
[337582498,1725856244652,-150.72,0.0001499,2]
[337582499,1725856244661,-150.72,0.0001499,2]
[337582500,1725856244670,-385.4526345,0.0001499,2]
[337582501,1725856244679,-385.4526345,0.0001499,2]
[337582502,1725856244688,-385.4526345,0.0001499,2]
[337582503,1725856244697,-385.4526345,0.0001499,2]
[337582504,1725856244706,-385.4526345,0.0001499,2]
[337582505,1725856244715,-150.0,0.00014991,2]
[337582506,1725856244724,-150.0,0.00014991,2]
[337582507,1725856244734,-5174.0488847,0.00014993,2]
[337582508,1725856244743,-150.0,0.00014995,2]
[337582509,1725856244752,-2000675.56314147,0.00015,2]
[337582510,1725856244766,-40434.18464114,0.00015,2]
[337582511,1725856244777,-230543.95613511,0.00015,2]
[337582512,1725856244788,-541.60895931,0.00015,2]
[337582513,1725856244799,-828.2428221,0.00015,2]
[337582514,1725856244810,-312.91,0.00015,2]
[337582515,1725856244821,-539.06283141,0.00015,2]
[337582516,1725856244832,-4592.72827989,0.00015,2]
[337582517,1725856244847,-366477.76935272,0.00015,2]
[337582518,1725856244858,-1595.41732748,0.00015,2]
[337582519,1725856244869,-656.14,0.00015,2]
[337582520,1725856244880,-1083.32602541,0.00015,2]
[337582521,1725856244890,-24530.14252711,0.00015,2]
[337582522,1725856245067,-382.12258582,0.00015,2]
[337582523,1725856245083,-8702.15697686,0.00015,2]
[337582524,1725856245095,-4791.17830158,0.00015,2]
[337582525,1725856245106,-361.6920653,0.00015,2]
[337582526,1725856245117,-348462.07339354,0.00015,2]
[337582527,1725856245128,-833.87987711,0.00015,2]
[337582528,1725856245143,-6845.9302611,0.00015,2]
[337582529,1725856245154,-757.85641077,0.00015,2]
[337582530,1725856245165,-1559.45168708,0.00015,2]
[337582531,1725856245176,-273.88727203,0.00015,2]
[337582532,1725856245187,-4526.756931,0.00015,2]
[337582533,1725856245199,-367.69336575,0.00015,2]
[337582534,1725856245210,-3313.60911296,0.00015,2]
[337582535,1725856245220,-1164.90682513,0.00015,2]
[337582536,1725856245231,-1926.22836975,0.00015,2]
[337582537,1725856245242,-821.406033,0.00015,2]
[337582538,1725856245253,-1105.69000003,0.00015,2]
[337582539,1725856245264,-503.19150413,0.00015,2]
[337582540,1725856245275,-1149.07228572,0.00015,2]
[337582541,1725856245286,-10034.08847094,0.00015,2]
[337582542,1725856245296,-486.18500001,0.00015,2]
[337582543,1725856245307,-369.12270208,0.00015,2]
[337582544,1725856245318,-1128.06641355,0.00015,2]
[337582545,1725856245329,-912.45,0.00015,2]
[337582557,1725856245968,-841.5247125,0.00015,2]
[337582558,1725856245987,-932.03586583,0.00015,2]
[337582559,1725856246000,-918.3487726,0.00015,2]
[337582560,1725856246012,-6399.25000045,0.00015,2]
[337582561,1725856246022,-12013.5,0.00015,2]
[337582562,1725856246035,-1245.02729147,0.00015,2]
[337582563,1725856246047,-567.63859501,0.00015,2]
[337582564,1725856246062,-16896.2586345,0.00015,2]
[337582565,1725856246078,-36464.53801103,0.00015,2]
[337582566,1725856246090,-71783.70110887,0.00015,2]
[337582567,1725856246101,-1146.82366185,0.00015,2]
[337582568,1725856246114,-1464.06406546,0.00015,2]
[337582569,1725856246125,-2927.37522779,0.00015,2]
[337582570,1725856246135,-448.95942964,0.00015,2]
[337582571,1725856246147,-1732.275,0.00015,2]
[337582572,1725856246158,-16910.57568415,0.00015,2]
[337582573,1725856246169,-1509.09021663,0.00015,2]
[337582574,1725856246553,-356.88365472,0.00015,2]
[337582575,1725856246564,-467.5696332,0.00015,2]
[337582576,1725856246575,-387.7317709,0.00015,2]
[337582577,1725856246586,-5966.55757461,0.00015,2]
[337582578,1725856246597,-283.51720375,0.00015,2]
[337582579,1725856246608,-3671.2053238,0.00015,2]
[337582580,1725856246619,-11282.35319939,0.00015,2]
[337582581,1725856246631,-2886.749998,0.00015,2]
[337582582,1725856246649,-631.37538617,0.00015,2]
[337582583,1725856246660,-1771.28239606,0.00015,2]
[337582584,1725856246671,-321.8,0.00015,2]
[337582585,1725856246690,-277.38,0.00015,2]
[337582586,1725856246701,-1494.82037085,0.00015,2]
[337582587,1725856246712,-993.55711988,0.00015,2]
[337582588,1725856246723,-2009.13156047,0.00015,2]
[337582589,1725856246734,-1090.01720338,0.00015,2]
[337582590,1725856246745,-1346.35809449,0.00015,2]
[337582591,1725856246756,-8027.63642451,0.00015,2]
[337582592,1725856246767,-37742.8401068,0.00015,2]
[337582593,1725856246778,-51777.34103376,0.00015,2]
[337582594,1725856246789,-3407.63288819,0.00015,2]
[337582595,1725856246826,-900.09,0.00015,2]
[337582596,1725856246838,-1673.54415866,0.00015,2]
[337582597,1725856246849,-674.03676553,0.00015,2]
[337582598,1725856246860,-361.43277495,0.00015,2]
[337582599,1725856246870,-9436.21788975,0.00015,2]
[337582600,1725856246881,-1788.63600368,0.00015,2]
[337582601,1725856246893,-3076.63408916,0.00015,2]
[337582602,1725856246904,-314.47600612,0.00015,2]
[337582603,1725856246915,-450.0,0.00015,2]
[337582604,1725856246926,-898.99522388,0.00015,2]
[337582605,1725856246937,-549.06364733,0.00015,2]
[337582606,1725856246967,-418.84953567,0.00015,2]
[337582607,1725856246978,-1000.50404237,0.00015,2]
[337582608,1725856246990,-24827.57488145,0.00015,2]
[337582609,1725856247002,-314.99999994,0.00015,2]
[337582610,1725856247022,-1222.58142477,0.00015,2]
[337582611,1725856247033,-2654.94895016,0.00015,2]
[337582617,1725856621138,158.93,0.00010959,2]
[337582618,1725856717166,606.36,0.00011837,2]
[337582623,1725857009547,750.0,0.00011,2]
[337582625,1725857190462,150.27683625,0.00012439,2]
[337582626,1725857195474,152.21,0.00010959,2]
[337582630,1725857311896,-800.0,0.00013,2]
[337582631,1725857311926,-584.1523217,0.0001357,2]
[337582632,1725857311954,-1053.21,0.0001367,2]
[337582633,1725857311984,-250.0,0.0001367,2]
[337582634,1725857312015,-250.0,0.00013674,2]
[337582635,1725857312046,-250.0,0.00013676,2]
[337582636,1725857312076,-500.0,0.00013686,2]
[337582637,1725857312105,-400.0,0.00013687,2]
[337582638,1725857312134,-150.0,0.00013688,2]
[337582639,1725857312163,-168.69,0.00013698,2]
[337582640,1725857312192,-335.11,0.00013699,2]
[337582641,1725857312221,-150.34833019,0.000137,2]
[337582649,1725857382289,613.12,0.00011878,2]
[337582650,1725857406120,12121.0,0.00028,120]
[337582651,1725857431842,-350.85430267,0.000137,2]
[337582652,1725857431858,-21.58166981,0.000137,2]
[337582653,1725857431867,-127.56402752,0.00013702,2]
[337582654,1725857431879,-259.46597248,0.00013702,2]
[337582655,1725857431888,-370.66,0.00013715,2]
[337582656,1725857431897,-552.69,0.00013719,2]
[337582657,1725857431906,-49.03534793,0.00013732,2]
[337582658,1725857431917,-311.84172578,0.00013732,2]
[337582659,1725857431928,-833.36001832,0.00013732,2]
[337582660,1725857431939,-696.93784984,0.00013732,2]
[337582661,1725857431950,-9423.99800782,0.00013732,2]
[337582662,1725857431960,-571.52115498,0.00013732,2]
[337582663,1725857431971,-3933.21589533,0.00013732,2]
[337582664,1725857431981,-180.0,0.00013762,2]
[337582665,1725857431990,-680.0,0.000138,2]
[337582666,1725857431999,-1852.42,0.00013813,2]
[337582667,1725857432008,-167.55,0.00013813,2]
[337582668,1725857432017,-178.29,0.00013943,2]
[337582669,1725857432026,-175.01,0.00014135,2]
[337582670,1725857432035,-613.12,0.00014142,2]
[337582671,1725857432044,-430.42,0.00014192,2]
[337582672,1725857432053,-370.04,0.00014192,2]
[337582673,1725857432063,-150.0,0.00014192,2]
[337582674,1725857432072,-304.6,0.00014192,2]
[337582675,1725857432489,-150.0,0.00014192,2]
[337582676,1725857432538,-150.0,0.00014192,2]
[337582677,1725857432559,-1145.97,0.000144,2]
[337582678,1725857432576,-422.19,0.00014488,2]
[337582679,1725857432599,-422.19,0.00014488,2]
[337582680,1725857432610,-174.36,0.00014488,2]
[337582681,1725857432622,-740.03,0.000145,2]
[337582682,1725857432632,-357.54,0.000145,2]
[337582683,1725857432642,-150.0,0.00014515,2]
[337582684,1725857432655,-752.34,0.00014516,2]
[337582685,1725857432664,-752.34,0.00014516,2]
[337582686,1725857432675,-158.0,0.00014516,2]
[337582687,1725857432685,-752.34,0.000147,2]
[337582688,1725857432694,-422.19,0.000147,2]
[337582689,1725857432705,-275.0,0.000147,2]
[337582690,1725857432714,-974.06736992,0.00014724,2]
[337582691,1725857432723,-150.0,0.00014729,2]
[337582692,1725857432734,-150.0,0.00014733,2]
[337582693,1725857432743,-150.0,0.00014737,2]
[337582694,1725857432752,-150.0,0.00014746,2]
[337582695,1725857432761,-114.91977744,0.00014748,2]
[337582696,1725857432773,-35.08022256,0.00014748,2]
[337582697,1725857432782,-150.0,0.00014749,2]
[337582698,1725857432792,-150.0,0.0001475,2]
[337582699,1725857432801,-150.0,0.00014753,2]
[337582700,1725857432811,-150.0,0.00014756,2]
[337582701,1725857432820,-150.0,0.0001476,2]
[337582702,1725857432830,-150.0,0.0001476,2]
[337582703,1725857432842,-150.0,0.00014766,2]
[337582704,1725857432851,-150.0,0.00014767,2]
[337582705,1725857432860,-150.0,0.00014768,2]
[337582706,1725857432870,-150.0,0.00014768,2]
[337582707,1725857432879,-150.0,0.0001477,2]
[337582708,1725857432888,-29.64589522,0.00014771,2]
[337582709,1725857432899,-1470.35410478,0.00014771,2]
[337582710,1725857432909,-150.0,0.00014772,2]
[337582711,1725857432920,-150.0,0.00014775,2]
[337582712,1725857432930,-150.0,0.00014786,2]
[337582713,1725857432940,-150.0,0.00014789,2]
[337582714,1725857432949,-150.0,0.00014789,2]
[337582715,1725857432958,-150.0,0.0001479,2]
[337582716,1725857432968,-150.0,0.00014791,2]
[337582717,1725857432977,-151.45753278,0.00014791,2]
[337582718,1725857432987,-150.0,0.00014794,2]
[337582719,1725857432996,-165.667166,0.00014795,2]
[337582720,1725857433006,-150.0,0.00014796,2]
[337582721,1725857433016,-150.0,0.00014797,2]
[337582722,1725857433025,-150.0,0.00014799,2]
[337582723,1725857433035,-523.6,0.000148,2]
[337582724,1725857433045,-759.64,0.000148,2]
[337582725,1725857433055,-357.54,0.000148,2]
[337582726,1725857433065,-229.935,0.000148,2]
[337582727,1725857433074,-487.40324274,0.000148,2]
[337582728,1725857433085,-150.0,0.00014803,2]
[337582729,1725857433094,-150.0,0.00014807,2]
[337582730,1725857433105,-150.0,0.0001481,2]
[337582731,1725857433115,-487.40324274,0.00014811,2]
[337582732,1725857433125,-1500.0,0.00014816,2]
[337582733,1725857433134,-150.0,0.00014817,2]
[337582734,1725857433144,-150.0,0.00014821,2]
[337582735,1725857433154,-487.40324274,0.00014822,2]
[337582736,1725857433166,-150.0,0.00014828,2]
[337582737,1725857433176,-150.0,0.00014828,2]
[337582738,1725857433187,-150.0,0.00014828,2]
[337582739,1725857433196,-150.0,0.00014829,2]
[337582740,1725857433207,-525.93263008,0.0001483,2]
[337582741,1725857433217,-150.0,0.00014831,2]
[337582742,1725857433227,-150.0,0.00014832,2]
[337582743,1725857433236,-487.40324274,0.00014833,2]
[337582744,1725857433246,-150.0,0.00014834,2]
[337582745,1725857433256,-150.0,0.00014836,2]
[337582746,1725857433265,-487.40324274,0.00014844,2]
[337582747,1725857433275,-150.0,0.00014846,2]
[337582748,1725857433284,-150.0,0.00014846,2]
[337582749,1725857433294,-150.0,0.00014847,2]
[337582750,1725857433304,-150.0,0.00014849,2]
[337582751,1725857433313,-150.0,0.00014849,2]
[337582752,1725857433324,-150.0,0.00014851,2]
[337582753,1725857433335,-150.0,0.00014852,2]
[337582754,1725857433345,-150.0,0.00014855,2]
[337582755,1725857433355,-487.40324274,0.00014856,2]
[337582756,1725857433365,-150.0,0.00014856,2]
[337582757,1725857433374,-150.0,0.0001486,2]
[337582758,1725857433384,-150.0,0.00014862,2]
[337582759,1725857433394,-487.40324274,0.00014867,2]
[337582760,1725857433403,-150.0,0.00014867,2]
[337582761,1725857433413,-150.0,0.00014868,2]
[337582762,1725857433423,-150.0,0.00014872,2]
[337582763,1725857433433,-178.29,0.00014873,2]
[337582764,1725857433442,-150.0,0.00014874,2]
[337582765,1725857433452,-150.0,0.00014876,2]
[337582766,1725857433462,-487.40324274,0.00014878,2]
[337582767,1725857433472,-2967.996,0.0001488,2]
[337582768,1725857433482,-10688.67654466,0.0001488,2]
[337582769,1725857433504,-332.75527609,0.0001488,2]
[337582770,1725857433516,-29731.17727925,0.0001488,2]
[337582771,1725857433526,-447.6681,0.0001488,2]
[337582772,1725857433536,-150.0,0.00014887,2]
[337582773,1725857433547,-150.0,0.00014888,2]
[337582774,1725857433556,-487.40324274,0.00014889,2]
[337582775,1725857433566,-150.0,0.0001489,2]
[337582776,1725857433576,-150.0,0.0001489,2]
[337582777,1725857433588,-440.3574237,0.0001489,2]
[337582778,1725857433597,-2106.9764,0.0001489,2]
[337582779,1725857433606,-466.6253,0.0001489,2]
[337582780,1725857433616,-6031.2183,0.0001489,2]
[337582781,1725857433626,-26654.5489,0.0001489,2]
[337582782,1725857433636,-1298.1609,0.0001489,2]
[337582783,1725857433646,-150.0,0.00014891,2]
[337582784,1725857433656,-150.0,0.00014891,2]
[337582785,1725857433667,-150.0,0.00014892,2]
[337582786,1725857433677,-150.0,0.00014892,2]
[337582787,1725857433688,-150.0,0.00014892,2]
[337582788,1725857433698,-440.35742369,0.00014895,2]
[337582789,1725857433707,-1500.0,0.00014895,2]
[337582790,1725857433717,-150.0,0.00014899,2]
[337582791,1725857433726,-158.56691586,0.00014899,2]
[337582792,1725857433736,-181.57844867,0.00014899,2]
[337582793,1725857433745,-158.56691584,0.000149,2]
[337582794,1725857433754,-178.68254912,0.000149,2]
[337582795,1725857433764,-271.8048,0.000149,2]
[337582796,1725857433774,-1350.9878,0.000149,2]
[337582797,1725857433785,-14327.8718,0.000149,2]
[337582798,1725857433796,-1000.0,0.000149,2]
[337582799,1725857433806,-1123.4572,0.000149,2]
[337582800,1725857433815,-1545.1541,0.000149,2]
[337582801,1725857433826,-591.9523,0.000149,2]
[337582802,1725857433836,-339.7032,0.000149,2]
[337582803,1725857433846,-641.58401024,0.000149,2]
[337582804,1725857433856,-158.56691584,0.000149,2]
[337582805,1725857433866,-1025.0,0.000149,2]
[337582806,1725857433876,-476.29160754,0.000149,2]
[337582807,1725857433886,-774.05167911,0.000149,2]
[337582808,1725857433896,-487.40324274,0.000149,2]
[337582809,1725857433907,-150.0,0.00014912,2]
[337582810,1725857433917,-150.0,0.00014918,2]
[337582811,1725857433927,-150.0,0.00014919,2]
[337582812,1725857433937,-150.0,0.00014919,2]
[337582813,1725857433947,-150.0,0.0001492,2]
[337582814,1725857433957,-150.0,0.0001492,2]
[337582815,1725857433968,-150.0,0.00014922,2]
[337582816,1725857433977,-150.0,0.00014922,2]
[337582817,1725857433987,-150.0,0.00014923,2]
[337582818,1725857433997,-150.0,0.00014924,2]
[337582819,1725857434007,-150.0,0.00014926,2]
[337582820,1725857434017,-150.0,0.00014927,2]
[337582821,1725857434028,-150.0,0.00014931,2]
[337582822,1725857434037,-1500.0,0.00014937,2]
[337582823,1725857434047,-150.0,0.00014938,2]
[337582824,1725857434057,-150.0,0.00014942,2]
[337582825,1725857434067,-150.0,0.00014944,2]
[337582826,1725857434077,-150.0,0.00014944,2]
[337582827,1725857434087,-150.0,0.00014946,2]
[337582828,1725857434097,-150.0,0.00014947,2]
[337582829,1725857434107,-150.0,0.00014949,2]
[337582830,1725857434117,-150.0,0.00014952,2]
[337582831,1725857434127,-150.0,0.00014954,2]
[337582832,1725857434137,-150.0,0.00014955,2]
[337582833,1725857434147,-220.0,0.00014956,2]
[337582834,1725857434157,-150.0,0.00014956,2]
[337582835,1725857434168,-150.0,0.0001496,2]
[337582836,1725857434179,-150.0,0.00014964,2]
[337582837,1725857434189,-150.0,0.00014965,2]
[337582838,1725857434199,-1500.0,0.00014966,2]
[337582839,1725857434208,-150.0,0.00014967,2]
[337582840,1725857434219,-150.0,0.00014969,2]
[337582841,1725857434228,-500.0,0.00014973,2]
[337582842,1725857434238,-150.0,0.00014975,2]
[337582843,1725857434248,-150.0,0.00014976,2]
[337582844,1725857434258,-150.0,0.00014977,2]
[337582845,1725857434269,-150.0,0.00014977,2]
[337582846,1725857434278,-150.0,0.00014979,2]
[337582847,1725857434289,-2999.98,0.0001498,2]
[337582848,1725857434298,-3000.0,0.0001498,2]
[337582849,1725857434308,-3000.0,0.0001498,2]
[337582850,1725857434317,-3000.0,0.0001498,2]
[337582851,1725857434327,-3000.0,0.0001498,2]
[337582852,1725857434336,-1066.8,0.0001498,2]
[337582853,1725857434346,-119294.106316,0.0001498,3]
[337582854,1725857434355,-34162.23173826,0.0001498,3]
[337582855,1725857434367,-3189.49843113,0.0001498,3]
[337582856,1725857434379,-718.60973769,0.0001498,3]
[337582857,1725857434390,-456.33428005,0.0001498,3]
[337582858,1725857434402,-1516.47244228,0.0001498,3]
[337582859,1725857434415,-1472.97,0.0001498,3]
[337582860,1725857434431,-3065.28778418,0.0001498,3]
[337582866,1725857437779,-740.34726879,0.00013719,2]
[337582867,1725857437791,-924.99139607,0.00013719,2]
[337582868,1725857437805,-13905.85457692,0.00013719,2]
[337582869,1725857437814,-440.35742369,0.00014899,2]
[337582870,1725857437823,-183.86,0.0001497,2]
[337582871,1725857437833,-183.86,0.00014979,2]
[337582872,1725857437843,-183.86,0.00014979,2]
[337582873,1725857437853,-11644.49796571,0.0001498,3]
[337582874,1725857437863,-150.0,0.00014982,2]
[337582875,1725857437873,-150.0,0.00014985,2]
[337582876,1725857437882,-84962.14290503,0.00014989,3]
[337582877,1725857437894,-897.58477711,0.00014989,3]
[337582878,1725857437905,-2756.36521699,0.00014989,3]
[337582879,1725857437916,-471.26757877,0.00014989,3]
[337582880,1725857437932,-646.92106943,0.00014989,3]
[337582881,1725857437943,-4204.82141487,0.00014989,3]
[337582882,1725857437955,-19076.3661788,0.00014989,3]
[337582883,1725857437966,-123696.985234,0.00014989,3]
[337582884,1725857437976,-150.0,0.00014989,2]
[337582885,1725857437985,-188.03557095,0.00014989,2]
[337582886,1725857437995,-452.69599075,0.00014989,2]
[337582887,1725857438005,-151.0,0.0001499,2]
[337582888,1725857438015,-151.0,0.0001499,2]
[337582889,1725857438024,-151.0,0.0001499,2]
[337582890,1725857438034,-151.0,0.0001499,2]
[337582891,1725857438044,-250000.0,0.0001499,2]
[337582892,1725857438054,-3163.17668163,0.0001499,3]
[337582893,1725857438066,-289.67771182,0.0001499,3]
[337582894,1725857438077,-442.25,0.0001499,3]
[337582895,1725857438100,-108556.70036555,0.0001499,3]
[337582896,1725857438109,-4555.253825,0.0001499,2]
[337582897,1725857438119,-3568.0075179,0.0001499,2]
[337582899,1725857438129,-2580.7612108,0.0001499,2]
[337582901,1725857438138,-1593.5149037,0.0001499,2]
[337582902,1725857438148,-606.2685966,0.0001499,2]
[337582903,1725857438157,-14042.5818617,0.0001499,2]
[337582904,1725857438167,-10999.1758041,0.0001499,2]
[337582905,1725857438176,-7955.7697465,0.0001499,2]
[337582907,1725857438186,-4912.3636889,0.0001499,2]
[337582909,1725857438195,-1868.9576312,0.0001499,2]
[337582911,1725857438206,-5266.4198781,0.0001499,2]
[337582913,1725857438215,-4125.0447152,0.0001499,2]
[337582915,1725857438225,-2983.6695524,0.0001499,2]
[337582917,1725857438236,-1842.2943896,0.0001499,2]
[337582919,1725857438245,-700.9192267,0.0001499,2]
[337582921,1725857438255,-170.28458045,0.00014999,2]
[337582923,1725857438264,-52665.24757587,0.00014999,2]
[337582925,1725857438275,-430.48305069,0.00014999,2]
[337582927,1725857438287,-23406.47410261,0.00014999,2]
[337582929,1725857438299,-19066.24339577,0.00014999,2]
[337582932,1725857438310,-5447.19255927,0.00014999,2]
[337582934,1725857438321,-1363.28313491,0.00014999,2]
[337582936,1725857438336,-703.20536157,0.00014999,2]
[337582939,1725857438347,-570.55999995,0.00014999,2]
[337582941,1725857438359,-67554.72629143,0.00014999,2]
[337582943,1725857438371,-315.29410803,0.00014999,2]
[337582945,1725857438384,-2076.34305428,0.00014999,2]
[337582948,1725857438402,-1954.87549614,0.00014999,2]
[337582951,1725857438414,-1109.20886868,0.00014999,2]
[337582953,1725857438427,-27428.65124824,0.00014999,2]
[337583019,1725857439916,-2138.99610286,0.00014999,2]
[337583020,1725857439928,-633.94524092,0.00014999,2]
[337583021,1725857439939,-362.572002,0.00014999,2]
[337583022,1725857439950,-656.66,0.00014999,2]
[337583023,1725857439963,-3844.79594496,0.00014999,2]
[337583024,1725857439975,-884.16644664,0.00014999,2]
[337583028,1725857440390,-1641.30252,0.00014999,2]
[337583029,1725857440402,-623.19855295,0.00014999,2]
[337583030,1725857440414,-1997.87492626,0.00014999,2]
[337583031,1725857440425,-1225.9364753,0.00014999,2]
[337583032,1725857440437,-1548.34307602,0.00014999,2]
[337583033,1725857440449,-794.98073637,0.00014999,2]
[337583034,1725857440460,-377.63072068,0.00014999,2]
[337583035,1725857440471,-649.02,0.00014999,2]
[337583036,1725857440483,-17566.79072138,0.00014999,2]
[337583037,1725857440493,-150.0,0.00014999,2]
[337583038,1725857440503,-4946.16754667,0.00014999,2]
[337583039,1725857440512,-667.0,0.00015,2]
[337583040,1725857440522,-40064.07121308,0.00015,2]
[337583041,1725857440533,-7180.06767896,0.00015,2]
[337583042,1725857440545,-3047.32287731,0.00015,2]
[337583043,1725857440557,-37533.08178596,0.00015,2]
[337583044,1725857440569,-23510.69049008,0.00015,2]
[337583045,1725857440580,-501.60663,0.00015,2]
[337583046,1725857440592,-5228.48614854,0.00015,2]
[337583047,1725857440604,-27241.57039901,0.00015,2]
[337583048,1725857440615,-29574.57782437,0.00015,2]
[337583049,1725857440626,-5578.94510997,0.00015,2]
[337583050,1725857440638,-385.66261705,0.00015,2]
[337583051,1725857440649,-311.142,0.00015,2]
[337583052,1725857440661,-267.89381405,0.00015,2]
[337583053,1725857440672,-59687.47526315,0.00015,2]
[337583054,1725857440684,-517.05379565,0.00015,2]
[337583055,1725857440697,-2224.96283318,0.00015,2]
[337583056,1725857440708,-192211.5167188,0.00015,2]
[337583057,1725857440719,-1268.67184621,0.00015,2]
[337583058,1725857440730,-1419.56170426,0.00015,2]
[337583059,1725857440741,-1608.91586877,0.00015,2]
[337583060,1725857440753,-686590.9707597,0.00015,2]
[337583061,1725857440764,-17763.29560768,0.00015,2]
[337583062,1725857440775,-137085.91014143,0.00015,2]
[337583063,1725857440786,-2409.35153101,0.00015,2]
[337583064,1725857440797,-254.25,0.00015,2]
[337583065,1725857440808,-3017.256,0.00015,2]
[337583066,1725857440819,-3380.424834,0.00015,2]
[337583067,1725857440830,-576.99,0.00015,2]
[337583068,1725857440841,-1023.25,0.00015,2]
[337583069,1725857440852,-1539139.60372976,0.00015,2]
[337583070,1725857440863,-99822.38001349,0.00015,2]
[337583071,1725857440875,-509887.36645037,0.00015,2]
[337583072,1725857440885,-237672.90527248,0.00015,2]
[337583073,1725857440899,-1092.27862809,0.00015,2]
[337583074,1725857440911,-923.08443828,0.00015,2]
[337583075,1725857440923,-1103.41846136,0.00015,2]
[337583076,1725857440935,-726.95678589,0.00015,2]
[337583077,1725857440946,-24929.11631104,0.00015,2]
[337583110,1725857445251,-738.1314692,0.00015,2]
[337583111,1725857445267,-947.40643778,0.00015,2]
[337583112,1725857445282,-384.34999965,0.00015,2]
[337583162,1725857446348,-364.71060932,0.00015,2]
[337583163,1725857446413,-320019.31577152,0.00015,2]
[337583164,1725857446458,-528.85885242,0.00015,2]
[337583165,1725857446473,-7724.67253932,0.00015,2]
[337583166,1725857446490,-580.5241446,0.00015,2]
[337583167,1725857446502,-14278.23553382,0.00015,2]
[337583168,1725857446514,-997.62972712,0.00015,2]
[337583169,1725857446526,-1445.11600172,0.00015,2]
[337583170,1725857446538,-340.68338463,0.00015,2]
[337583171,1725857446550,-327.12129972,0.00015,2]
[337583172,1725857446562,-388.75856295,0.00015,2]
[337583173,1725857447009,-4950.74460406,0.00015,2]
[337583174,1725857447021,-25146.37283476,0.00015,2]
[337583175,1725857447034,-747.85523931,0.00015,2]
[337583176,1725857447046,-3087.7847,0.00015,2]
[337583177,1725857447058,-1243.9391314,0.00015,2]
[337583178,1725857447194,-150.72,0.00014979,2]
[337583179,1725857447204,-150.72,0.00014989,2]
[337583180,1725857447214,-0.56,0.0001499,2]
[337583181,1725857447234,-150.16,0.0001499,2]
[337583182,1725857447244,-150.72,0.0001499,2]
[337583183,1725857447253,-71.00291753,0.0001499,2]
[337583184,1725857447265,-79.71708247,0.0001499,2]
[337583185,1725857447275,-150.72,0.0001499,2]
[337583186,1725857447286,-1094.36291753,0.00015,2]
[337583187,1725857447297,-896.1847932,0.00015,2]
[337583188,1725857447308,-9309.10477623,0.00015,2]
[337583189,1725857447320,-1668.32821834,0.00015,2]
[337583190,1725857447331,-5114.97780404,0.00015,2]
[337583191,1725857447348,-150.72,0.0001499,2]
[337583192,1725857447357,-33178.19259541,0.00015,2]
[337583193,1725857447368,-25773.32341151,0.00015,2]
[337583194,1725857447380,-344.849717,0.00015,2]
[337583195,1725857447393,-273.5,0.00015,2]
[337583196,1725857447406,-611.967,0.00015,2]
[337583197,1725857447418,-8079.87362539,0.00015,2]
[337583198,1725857447435,-84206.71249312,0.00015,2]
[337583199,1725857447455,-150.72,0.0001499,2]
[337583200,1725857447465,-1449.28,0.00015,2]
[337583201,1725857447478,-1794.36314389,0.00015,2]
[337583202,1725857447491,-335025.25171471,0.00015,2]
[337583203,1725857447505,-957.52,0.00015,2]
[337583204,1725857447516,-536.40375962,0.00015,2]
[337583206,1725857738026,163.04,0.00010959,2]
[337583208,1725857979211,646.29,0.00011616,2]
[337583209,1725858099215,1121.0,0.00023,60]
[337583232,1725858511970,653.09,0.00011699,2]
[337583233,1725858539883,160.74,0.00010959,2]